lending/lending_fUSD_20241229
["ID","MTS","AMOUNT","RATE_DAILY","PERIOD"]
[347100628,1735498239923,-500.0,0.00016508,2]
[347100630,1735498239932,-500.0,0.00016508,2]
[347100632,1735498239941,-500.0,0.00016508,2]
[347100634,1735498239949,-500.0,0.00016508,2]
[347100636,1735498239958,-500.0,0.00016508,2]
[347100638,1735498239967,-500.0,0.00016508,2]
[347100640,1735498239976,-500.0,0.00016508,2]
[347100642,1735498239985,-507.22,0.00016508,2]
[347100644,1735498239994,-500.0,0.00016508,2]
[347100646,1735498240004,-500.0,0.00016508,2]
[347100648,1735498240014,-500.0,0.00016508,2]
[347100650,1735498240023,-500.0,0.00016508,2]
[347100652,1735498240032,-500.0,0.00016508,2]
[347100654,1735498240041,-500.0,0.00016508,2]
[347100656,1735498240051,-500.0,0.00016508,2]
[347100658,1735498240060,-413.526,0.0001653,2]
[347100660,1735498240070,-500.0,0.00016547,2]
[347100661,1735498240079,-758.5,0.00016547,2]
[347100663,1735498240087,-500.0,0.00016547,2]
[347100665,1735498240098,-207.14,0.00016547,2]
[347100667,1735498240107,-614.98,0.00016547,2]
[347100669,1735498240116,-500.0,0.00016547,2]
[347100671,1735498240125,-500.0,0.00016547,2]
[347100673,1735498240134,-240.79665458,0.00016547,2]
[347100675,1735498240143,-500.0,0.00016547,2]
[347100677,1735498240152,-439.7,0.00016547,2]
[347100679,1735498240161,-500.0,0.00016547,2]
[347100681,1735498240170,-323.23,0.00016547,2]
[347100683,1735498240179,-306.12,0.00016547,2]
[347100685,1735498240189,-500.0,0.00016547,2]
[347100687,1735498240198,-1199.92,0.00016547,2]
[347100689,1735498240207,-500.0,0.00016547,2]
[347100691,1735498240217,-357.61,0.00016547,2]
[347100693,1735498240226,-400.60238839,0.00016547,2]
[347100695,1735498240235,-266.97784069,0.00016547,2]
[347100697,1735498240244,-500.0,0.00016547,2]
[347100700,1735498240254,-247.27,0.00016547,2]
[347100702,1735498240263,-500.0,0.00016547,2]
[347100703,1735498240271,-300.0,0.00016549,2]
[347100705,1735498240280,-150.0,0.00016646,2]
[347100707,1735498240289,-150.0,0.0001665,2]
[347100709,1735498240299,-237.31,0.00016658,30]
[347100711,1735498240308,-1344.0,0.00016689,7]
[347100713,1735498240317,-1344.0,0.00016689,7]
[347100715,1735498240326,-1616.16,0.000167,2]
[347100717,1735498240335,-182.83,0.00016712,2]
[347100719,1735498240345,-997.07,0.00016735,2]
[347100721,1735498240354,-1358.06,0.00016736,2]
[347100723,1735498240365,-2080.91,0.00016736,2]
[347100725,1735498240373,-723.25,0.00016736,2]
[347100727,1735498240382,-920.38,0.00016736,2]
[347100729,1735498240391,-500.0,0.00016766,2]
[347100731,1735498240400,-500.0,0.00016766,2]
[347100733,1735498240409,-500.0,0.00016766,2]
[347100735,1735498240418,-501.05415245,0.00016766,2]
[347100737,1735498240427,-501.28255983,0.00016766,2]
[347100739,1735498240436,-501.17153307,0.00016766,2]
[347100741,1735498240445,-500.0,0.00016766,2]
[347100743,1735498240454,-500.0,0.00016766,2]
[347100745,1735498240463,-500.0,0.00016766,2]
[347100747,1735498240472,-500.0,0.00016766,2]
[347100749,1735498240481,-500.0,0.00016766,2]
[347100751,1735498240490,-500.0,0.00016766,2]
[347100753,1735498240499,-500.0,0.00016766,2]
[347100755,1735498240508,-500.0,0.00016766,2]
[347100757,1735498240517,-500.0,0.00016766,2]
[347100759,1735498240526,-500.0,0.00016766,2]
[347100761,1735498240535,-500.0,0.00016766,2]
[347100763,1735498240544,-500.0,0.00016766,2]
[347100765,1735498240552,-500.0,0.00016766,2]
[347100767,1735498240561,-500.0,0.00016766,2]
[347100769,1735498240570,-500.0,0.00016766,2]
[347100771,1735498240578,-500.0,0.00016766,2]
[347100773,1735498240587,-500.0,0.00016766,2]
[347100775,1735498240599,-500.0,0.00016766,2]
[347100777,1735498240608,-501.42431072,0.00016766,2]
[347100779,1735498240618,-500.0,0.00016766,2]
[347100781,1735498240627,-500.0,0.00016766,2]
[347100783,1735498240636,-501.44698732,0.00016766,2]
[347100785,1735498240649,-500.0,0.00016766,2]
[347100786,1735498240670,-648.59,0.00016766,2]
[347100789,1735498240694,-500.0,0.00016766,2]
[347100791,1735498240715,-501.41568677,0.00016766,2]
[347100793,1735498240737,-500.0,0.00016766,2]
[347100794,1735498240759,-502.34661057,0.00016766,2]
[347100796,1735498240779,-500.0,0.00016766,2]
[347100798,1735498240800,-530.43,0.00016766,2]
[347100800,1735498240823,-500.0,0.00016766,2]
[347100802,1735498240837,-500.63077894,0.00016766,2]
[347100804,1735498240847,-500.71536988,0.00016766,2]
[347100806,1735498240857,-501.2555001,0.00016766,2]
[347100808,1735498240866,-500.0,0.00016766,2]
[347100810,1735498240875,-501.73132181,0.00016766,2]
[347100812,1735498240883,-501.83280241,0.00016766,2]
[347100814,1735498240893,-500.78443954,0.00016766,2]
[347100816,1735498240902,-502.11518266,0.00016766,2]
[347100818,1735498240911,-614.18,0.00016766,2]
[347100820,1735498240920,-500.0,0.00016766,2]
[347100822,1735498240929,-501.47321695,0.00016766,2]
[347100824,1735498240938,-500.0,0.00016766,2]
[347100826,1735498240949,-500.0,0.00016766,2]
[347100828,1735498240959,-500.0,0.00016766,2]
[347100830,1735498240968,-500.0,0.00016766,2]
[347100832,1735498240977,-501.05871096,0.00016766,2]
[347100834,1735498240986,-500.97194491,0.00016766,2]
[347100836,1735498240996,-500.0,0.00016766,2]
[347100838,1735498241008,-501.30725404,0.00016766,2]
[347100840,1735498241017,-501.4466105,0.00016766,2]
[347100842,1735498241026,-500.0,0.00016766,2]
[347100844,1735498241035,-500.89243314,0.00016766,2]
[347100846,1735498241044,-501.37773322,0.00016766,2]
[347100848,1735498241053,-500.0,0.00016766,2]
[347100850,1735498241062,-414.04537615,0.00016766,2]
[347100852,1735498241072,-500.0,0.00016766,2]
[347100854,1735498241081,-500.0,0.00016766,2]
[347100856,1735498241091,-500.0,0.00016766,2]
[347100858,1735498241100,-500.0,0.00016766,2]
[347100860,1735498241109,-500.0,0.00016766,2]
[347100862,1735498241119,-603.52,0.00016766,2]
[347100864,1735498241128,-500.0,0.00016766,2]
[347100866,1735498241137,-500.0,0.00016766,2]
[347100868,1735498241146,-500.0,0.00016766,2]
[347100870,1735498241154,-500.0,0.00016766,2]
[347100872,1735498241163,-502.28342863,0.00016766,2]
[347100874,1735498241172,-903.13,0.00016766,2]
[347100876,1735498241181,-495.85650434,0.00016766,2]
[347100878,1735498241190,-500.0,0.00016766,2]
[347100880,1735498241199,-500.0,0.00016766,2]
[347100882,1735498241207,-500.0,0.00016766,2]
[347100884,1735498241216,-500.0,0.00016766,2]
[347100886,1735498241225,-500.0,0.00016766,2]
[347100888,1735498241234,-500.0,0.00016766,2]
[347100890,1735498241243,-500.0,0.00016766,2]
[347100892,1735498241252,-500.0,0.00016766,2]
[347100894,1735498241261,-500.0,0.00016766,2]
[347100896,1735498241270,-501.2766175,0.00016766,2]
[347100898,1735498241279,-500.0,0.00016766,2]
[347100900,1735498241288,-565.54,0.00016766,2]
[347100902,1735498241297,-500.0,0.00016766,2]
[347100904,1735498241306,-695.21226411,0.00016767,2]
[347100906,1735498241315,-500.0,0.00016782,2]
[347100908,1735498241324,-500.0,0.00016782,2]
[347100910,1735498241332,-500.0,0.00016782,2]
[347100912,1735498241342,-500.0,0.00016782,2]
[347100914,1735498241351,-500.0,0.00016782,2]
[347100915,1735498241359,-500.0,0.00016782,2]
[347100916,1735498241368,-500.0,0.00016782,2]
[347100917,1735498241378,-500.0,0.00016782,2]
[347100918,1735498241387,-500.0,0.00016782,2]
[347100919,1735498241396,-500.0,0.00016782,2]
[347100920,1735498241406,-362.51,0.00016782,2]
[347100921,1735498241415,-500.0,0.00016782,2]
[347100922,1735498241424,-500.0,0.00016782,2]
[347100924,1735498241434,-400.35,0.00016782,2]
[347100926,1735498241443,-187.0,0.00016813,2]
[347100928,1735498241452,-500.0,0.00016821,2]
[347100930,1735498241461,-758.5,0.00016821,2]
[347100932,1735498241469,-500.0,0.00016821,2]
[347100934,1735498241478,-500.0,0.00016821,2]
[347100936,1735498241487,-635.69,0.00016821,2]
[347100938,1735498241496,-457.8,0.00016821,2]
[347100940,1735498241505,-500.0,0.00016821,2]
[347100942,1735498241514,-500.0,0.00016821,2]
[347100944,1735498241523,-1199.92,0.00016821,2]
[347100946,1735498241532,-500.0,0.00016821,2]
[347100948,1735498241541,-500.0,0.00016821,2]
[347100950,1735498241551,-500.0,0.00016821,2]
[347100952,1735498241560,-695.21226411,0.00016849,2]
[347100954,1735498241568,-363.15,0.00016895,2]
[347100956,1735498241577,-500.0,0.00016904,2]
[347100958,1735498241587,-288.2881,0.00016911,2]
[347100960,1735498241597,-150.0,0.00016927,2]
[347100962,1735498241607,-695.21226411,0.00016932,2]
[347100964,1735498241616,-164.76366306,0.00016932,2]
[347100966,1735498241625,-157.62458914,0.00016932,2]
[347100968,1735498241635,-374.41617947,0.00016932,2]
[347100970,1735498241643,-624.33512726,0.00016932,2]
[347100972,1735498241652,-335.93,0.00016958,2]
[347100974,1735498241661,-1344.0,0.00016962,7]
[347100976,1735498241670,-1344.0,0.00016962,7]
[347100978,1735498241679,-389.0,0.00017,7]
[347100980,1735498241688,-500.0,0.00017,7]
[347100982,1735498241697,-500.0,0.00017,7]
[347100984,1735498241706,-500.0,0.00017,7]
[347100986,1735498241715,-500.0,0.00017,7]
[347100988,1735498241725,-500.0,0.00017,7]
[347100990,1735498241734,-500.0,0.00017,7]
[347100992,1735498241743,-500.0,0.00017,7]
[347100994,1735498241752,-500.0,0.00017,7]
[347100996,1735498241761,-500.0,0.00017,7]
[347100998,1735498241770,-500.0,0.00017,7]
[347101000,1735498241779,-500.0,0.00017,7]
[347101002,1735498241787,-500.0,0.00017,7]
[347101004,1735498241796,-500.0,0.00017,7]
[347101006,1735498241805,-545.72,0.00017,7]
[347101008,1735498241814,-500.0,0.00017,7]
[347101010,1735498241824,-500.0,0.00017,7]
[347101012,1735498241833,-500.0,0.00017,7]
[347101014,1735498241842,-500.0,0.00017,7]
[347101016,1735498241851,-500.0,0.00017,7]
[347101018,1735498241859,-500.0,0.00017,7]
[347101020,1735498241868,-500.0,0.00017,7]
[347101022,1735498241877,-500.0,0.00017,7]
[347101023,1735498241886,-500.0,0.00017,7]
[347101025,1735498241895,-500.0,0.00017,7]
[347101027,1735498241904,-500.0,0.00017,7]
[347101029,1735498241913,-500.0,0.00017,7]
[347101031,1735498241922,-500.0,0.00017,7]
[347101033,1735498241931,-500.0,0.00017,7]
[347101035,1735498241940,-500.0,0.00017,7]
[347101037,1735498241949,-500.0,0.00017,7]
[347101039,1735498241958,-500.0,0.00017,7]
[347101041,1735498241967,-500.0,0.00017,7]
[347101043,1735498241976,-500.0,0.00017,7]
[347101045,1735498241987,-500.0,0.00017,7]
[347101047,1735498241995,-500.0,0.00017,7]
[347101049,1735498242004,-500.0,0.00017,7]
[347101051,1735498242013,-500.0,0.00017,7]
[347101053,1735498242022,-500.0,0.00017,7]
[347101055,1735498242031,-500.0,0.00017,7]
[347101057,1735498242039,-500.0,0.00017,7]
[347101059,1735498242048,-500.0,0.00017,7]
[347101061,1735498242057,-500.0,0.00017,7]
[347101063,1735498242066,-500.0,0.00017,7]
[347101065,1735498242075,-500.0,0.00017,7]
[347101067,1735498242083,-500.0,0.00017,7]
[347101069,1735498242092,-500.0,0.00017,7]
[347101070,1735498242101,-500.0,0.00017,7]
[347101072,1735498242110,-500.0,0.00017,7]
[347101074,1735498242119,-500.0,0.00017,7]
[347101076,1735498242128,-500.0,0.00017,7]
[347101078,1735498242137,-500.0,0.00017,7]
[347101080,1735498242146,-500.0,0.00017,7]
[347101082,1735498242155,-500.0,0.00017,7]
[347101084,1735498242164,-500.0,0.00017,7]
[347101086,1735498242173,-500.0,0.00017,7]
[347101088,1735498242182,-500.0,0.00017,7]
[347101090,1735498242191,-500.0,0.00017,7]
[347101092,1735498242200,-500.0,0.00017,7]
[347101094,1735498242213,-500.0,0.00017,7]
[347101096,1735498242222,-500.0,0.00017,7]
[347101098,1735498242231,-500.0,0.00017,7]
[347101100,1735498242240,-549.53,0.00017,7]
[347101102,1735498242249,-997.07,0.00017009,2]
[347101104,1735498242257,-1358.06,0.0001701,2]
[347101106,1735498242266,-2080.91,0.0001701,2]
[347101108,1735498242275,-920.38,0.0001701,2]
[347101110,1735498242284,-1920.057,0.00017011,2]
[347101112,1735498242292,-695.21226411,0.00017014,2]
[347101114,1735498242301,-374.41617947,0.00017014,2]
[347101116,1735498242310,-624.33512726,0.00017014,2]
[347101117,1735498242319,-309.14970049,0.0001704,2]
[347101119,1735498242328,-162.2,0.0001704,2]
[347101121,1735498242336,-500.0,0.0001704,2]
[347101123,1735498242346,-207.75,0.0001704,2]
[347101125,1735498242355,-185.05,0.0001704,2]
[347101127,1735498242364,-500.0,0.0001704,2]
[347101129,1735498242373,-393.23,0.0001704,2]
[347101131,1735498242382,-500.0,0.0001704,2]
[347101133,1735498242390,-157.12536469,0.0001704,2]
[347101135,1735498242399,-344.86,0.0001704,2]
[347101137,1735498242408,-307.92,0.0001704,2]
[347101139,1735498242418,-500.0,0.0001704,2]
[347101141,1735498242427,-500.0,0.0001704,2]
[347101143,1735498242435,-626.74057386,0.0001704,2]
[347101145,1735498242444,-156.15053229,0.0001704,2]
[347101147,1735498242453,-903.13,0.0001704,2]
[347101149,1735498242462,-500.0,0.0001704,2]
[347101151,1735498242471,-500.0,0.0001704,2]
[347101153,1735498242480,-500.0,0.0001704,2]
[347101155,1735498242492,-430.56747587,0.0001704,2]
[347101157,1735498242501,-500.0,0.0001704,2]
[347101159,1735498242510,-191.41,0.0001704,2]
[347101161,1735498242519,-164.76366306,0.00017041,2]
[347101163,1735498242528,-157.62458914,0.00017041,2]
[347101165,1735498242538,-700.1872808,0.00017052,2]
[347101167,1735498242547,-500.0,0.00017056,2]
[347101169,1735498242555,-500.0,0.00017056,2]
[347101171,1735498242564,-500.0,0.00017056,2]
[347101173,1735498242573,-500.0,0.00017056,2]
[347101175,1735498242581,-500.0,0.00017056,2]
[347101177,1735498242591,-500.0,0.00017056,2]
[347101179,1735498242603,-500.0,0.00017056,2]
[347101181,1735498242612,-500.0,0.00017056,2]
[347101183,1735498242621,-500.0,0.00017056,2]
[347101185,1735498242630,-500.0,0.00017056,2]
[347101187,1735498242639,-500.0,0.00017056,2]
[347101189,1735498242648,-500.0,0.00017095,2]
[347101191,1735498242657,-758.5,0.00017095,2]
[347101193,1735498242665,-500.0,0.00017095,2]
[347101195,1735498242674,-500.0,0.00017095,2]
[347101197,1735498242682,-500.0,0.00017095,2]
[347101199,1735498242691,-500.0,0.00017095,2]
[347101201,1735498242700,-1199.92,0.00017095,2]
[347101203,1735498242709,-500.0,0.00017095,2]
[347101205,1735498242718,-320.49,0.00017095,2]
[347101207,1735498242727,-500.0,0.00017095,2]
[347101209,1735498242737,-695.21226411,0.00017096,2]
[347101211,1735498242747,-374.41617947,0.00017096,2]
[347101213,1735498242755,-624.33512726,0.00017096,2]
[347101215,1735498242764,-164.76366306,0.00017151,2]
[347101217,1735498242773,-695.21226411,0.00017178,2]
[347101219,1735498242782,-157.62458914,0.00017178,2]
[347101221,1735498242790,-374.41617947,0.00017178,2]
[347101223,1735498242799,-624.33512726,0.00017178,2]
[347101225,1735498242808,-502.86235044,0.00017199,2]
[347101227,1735498242817,-500.0,0.00017199,2]
[347101229,1735498242825,-506.8314041,0.00017199,2]
[347101231,1735498242834,-516.32342126,0.00017199,2]
[347101233,1735498242843,-511.19320003,0.00017199,2]
[347101235,1735498242852,-500.0,0.00017199,2]
[347101237,1735498242861,-505.15900378,0.00017199,2]
[347101239,1735498242870,-500.0,0.00017199,2]
[347101241,1735498242879,-500.0,0.00017199,2]
[347101243,1735498242888,-500.0,0.00017199,2]
[347101245,1735498242897,-500.0,0.00017199,2]
[347101247,1735498242906,-504.3416016,0.00017199,2]
[347101249,1735498242915,-518.08090368,0.00017199,2]
[347101251,1735498242923,-542.6101501,0.00017199,2]
[347101253,1735498242932,-500.0,0.00017199,2]
[347101255,1735498242941,-500.0,0.00017199,2]
[347101258,1735498242950,-503.93388502,0.00017199,2]
[347101260,1735498242960,-500.0,0.00017199,2]
[347101262,1735498242969,-14632.43776876,0.000172,2]
[347101264,1735498242978,-500.0,0.00017216,2]
[347101266,1735498242986,-500.0,0.00017216,2]
[347101268,1735498242996,-500.0,0.00017216,2]
[347101269,1735498243007,-500.0,0.00017216,2]
[347101272,1735498243015,-544.39,0.00017216,2]
[347101274,1735498243025,-500.0,0.00017216,2]
[347101276,1735498243034,-500.0,0.00017216,2]
[347101278,1735498243046,-500.0,0.00017216,2]
[347101280,1735498243056,-500.0,0.00017216,2]
[347101283,1735498243065,-500.0,0.00017216,2]
[347101285,1735498243075,-629.62,0.00017216,2]
[347101287,1735498243085,-500.0,0.00017216,2]
[347101289,1735498243097,-500.0,0.00017216,2]
[347101290,1735498243107,-500.0,0.00017216,2]
[347101292,1735498243120,-500.0,0.00017216,2]
[347101294,1735498243129,-500.0,0.00017216,2]
[347101296,1735498243139,-406.11292402,0.00017216,2]
[347101298,1735498243149,-500.0,0.00017216,2]
[347101299,1735498243159,-196.53,0.00017216,2]
[347101300,1735498243168,-175.26,0.00017216,2]
[347101301,1735498243177,-182.37,0.00017216,2]
[347101302,1735498243187,-500.0,0.00017216,2]
[347101303,1735498243197,-301.8,0.00017216,2]
[347101304,1735498243207,-155.06,0.00017216,2]
[347101305,1735498243216,-500.0,0.00017216,2]
[347101306,1735498243225,-230.45,0.00017216,2]
[347101307,1735498243234,-500.0,0.00017216,2]
[347101308,1735498243244,-500.0,0.00017216,2]
[347101310,1735498243254,-500.0,0.00017216,2]
[347101311,1735498243263,-500.0,0.00017216,2]
[347101313,1735498243272,-615.0,0.00017216,2]
[347101315,1735498243282,-500.0,0.00017216,2]
[347101317,1735498243291,-569.29,0.00017216,2]
[347101319,1735498243300,-500.0,0.00017216,2]
[347101321,1735498243309,-500.0,0.00017216,2]
[347101323,1735498243318,-500.0,0.00017216,2]
[347101324,1735498243327,-500.0,0.00017216,2]
[347101326,1735498243337,-500.0,0.00017216,2]
[347101327,1735498243348,-500.0,0.00017216,2]
[347101328,1735498243358,-500.0,0.00017216,2]
[347101329,1735498243367,-500.0,0.00017216,2]
[347101330,1735498243377,-500.0,0.00017216,2]
[347101331,1735498243386,-500.0,0.00017216,2]
[347101332,1735498243396,-500.0,0.00017216,2]
[347101333,1735498243405,-500.0,0.00017216,2]
[347101334,1735498243415,-500.0,0.00017216,2]
[347101335,1735498243424,-500.0,0.00017216,2]
[347101336,1735498243435,-500.0,0.00017216,2]
[347101337,1735498243445,-500.0,0.00017216,2]
[347101338,1735498243455,-500.0,0.00017216,2]
[347101339,1735498243464,-500.0,0.00017216,2]
[347101340,1735498243474,-500.0,0.00017216,2]
[347101341,1735498243483,-500.0,0.00017216,2]
[347101342,1735498243493,-500.0,0.00017216,2]
[347101343,1735498243502,-500.0,0.00017216,2]
[347101344,1735498243512,-340.04,0.00017216,2]
[347101345,1735498243521,-500.0,0.00017216,2]
[347101352,1735498243681,-500.0,0.00017216,2]
[347101353,1735498243690,-500.0,0.00017216,2]
[347101354,1735498243700,-647.63,0.00017216,2]
[347101355,1735498243709,-500.0,0.00017216,2]
[347101356,1735498243719,-565.09,0.00017216,2]
[347101357,1735498243728,-505.72,0.00017216,2]
[347101358,1735498243738,-527.29,0.00017216,2]
[347101359,1735498243748,-500.0,0.00017216,2]
[347101360,1735498243757,-624.22,0.00017216,2]
[347101362,1735498243767,-500.0,0.00017216,2]
[347101363,1735498243776,-500.0,0.00017216,2]
[347101364,1735498243785,-500.0,0.00017216,2]
[347101365,1735498243795,-500.0,0.00017216,2]
[347101366,1735498243805,-500.0,0.00017216,2]
[347101367,1735498243815,-500.0,0.00017216,2]
[347101368,1735498243824,-500.0,0.00017216,2]
[347101369,1735498243834,-500.0,0.00017216,2]
[347101370,1735498243846,-500.0,0.00017216,2]
[347101371,1735498243856,-500.0,0.00017216,2]
[347101372,1735498243865,-500.0,0.00017216,2]
[347101373,1735498243875,-500.0,0.00017216,2]
[347101374,1735498243884,-500.0,0.00017216,2]
[347101375,1735498243894,-500.0,0.00017216,2]
[347101376,1735498243904,-500.0,0.00017216,2]
[347101377,1735498243913,-500.0,0.00017216,2]
[347101378,1735498243923,-351.63695495,0.00017216,2]
[347101379,1735498243932,-500.0,0.00017216,2]
[347101380,1735498243942,-500.0,0.00017216,2]
[347101381,1735498243952,-645.42,0.00017216,2]
[347101382,1735498243961,-500.0,0.00017216,2]
[347101383,1735498243970,-500.0,0.00017216,2]
[347101384,1735498243980,-500.0,0.00017216,2]
[347101385,1735498243990,-500.0,0.00017216,2]
[347101386,1735498243999,-306.72650191,0.00017216,2]
[347101387,1735498244008,-500.0,0.00017216,2]
[347101388,1735498244018,-500.0,0.00017216,2]
[347101389,1735498244027,-500.0,0.00017216,2]
[347101390,1735498244037,-300.0,0.00017216,2]
[347101391,1735498244047,-199.73,0.00017216,2]
[347101392,1735498244056,-500.0,0.00017216,2]
[347101393,1735498244066,-500.0,0.00017216,2]
[347101394,1735498244075,-500.0,0.00017216,2]
[347101395,1735498244085,-520.34840845,0.00017216,2]
[347101396,1735498244096,-500.0,0.00017216,2]
[347101397,1735498244107,-500.0,0.00017216,2]
[347101398,1735498244116,-500.0,0.00017216,2]
[347101399,1735498244126,-500.0,0.00017216,2]
[347101400,1735498244135,-500.0,0.00017216,2]
[347101401,1735498244145,-500.0,0.00017219,2]
[347101402,1735498244154,-342.16571356,0.00017219,2]
[347101403,1735498244163,-150.0,0.00017232,2]
[347101404,1735498244173,-1344.0,0.00017235,7]
[347101405,1735498244182,-1344.0,0.00017235,7]
[347101406,1735498244191,-500.0,0.0001726,2]
[347101407,1735498244200,-695.21226411,0.0001726,2]
[347101408,1735498244209,-164.76366306,0.0001726,2]
[347101409,1735498244219,-374.41617947,0.0001726,2]
[347101410,1735498244227,-624.33512726,0.0001726,2]
[347101411,1735498244237,-500.0,0.00017261,2]
[347101412,1735498244246,-904.27,0.0001727,2]
[347101413,1735498244255,-201.0,0.00017279,2]
[347101414,1735498244265,-997.07,0.00017283,2]
[347101415,1735498244274,-1358.06,0.00017284,2]
[347101416,1735498244283,-2080.91,0.00017284,2]
[347101417,1735498244293,-920.38,0.00017284,2]
[347101418,1735498244302,-167.98555428,0.000173,2]
[347101419,1735498244311,-29684.550489,0.000173,2]
[347101420,1735498244321,-167.25950434,0.000173,2]
[347101421,1735498244330,-42895.6456,0.000173,2]
[347101422,1735498244339,-348.29066092,0.000173,2]
[347101423,1735498244350,-546.69,0.00017314,2]
[347101424,1735498244359,-334.26,0.00017314,2]
[347101425,1735498244369,-903.13,0.00017314,2]
[347101426,1735498244378,-459.37490482,0.00017314,2]
[347101427,1735498244387,-500.0,0.00017314,2]
[347101428,1735498244396,-500.0,0.00017314,2]
[347101429,1735498244406,-500.0,0.00017314,2]
[347101430,1735498244415,-157.62458914,0.00017315,2]
[347101431,1735498244424,-228.45,0.0001733,2]
[347101432,1735498244433,-500.0,0.0001733,2]
[347101433,1735498244442,-500.0,0.0001733,2]
[347101434,1735498244452,-500.0,0.0001733,2]
[347101435,1735498244462,-500.0,0.0001733,2]
[347101436,1735498244472,-500.0,0.0001733,2]
[347101437,1735498244481,-500.0,0.0001733,2]
[347101438,1735498244490,-500.0,0.0001733,2]
[347101439,1735498244502,-500.0,0.0001733,2]
[347101440,1735498244511,-500.0,0.0001733,2]
[347101441,1735498244520,-500.0,0.0001733,2]
[347101442,1735498244529,-695.21226411,0.00017342,2]
[347101443,1735498244538,-374.41617947,0.00017342,2]
[347101444,1735498244548,-624.33512726,0.00017342,2]
[347101445,1735498244557,-500.0,0.00017369,2]
[347101446,1735498244566,-758.5,0.00017369,2]
[347101447,1735498244576,-627.48582351,0.00017369,2]
[347101448,1735498244585,-500.0,0.00017369,2]
[347101449,1735498244594,-500.0,0.00017369,2]
[347101450,1735498244605,-314.88,0.00017369,2]
[347101451,1735498244615,-1199.92,0.00017369,2]
[347101452,1735498244625,-500.0,0.00017369,2]
[347101453,1735498244635,-500.0,0.00017369,2]
[347101454,1735498244644,-164.76366306,0.0001737,2]
[347101455,1735498244654,-2241.0,0.0001737,2]
[347101456,1735498244664,-42900.0,0.0001737,2]
[347101457,1735498244673,-17211.0,0.0001737,2]
[347101458,1735498244683,-26178.0,0.0001737,2]
[347101459,1735498244692,-1001.78358906,0.0001737,2]
[347101460,1735498244702,-1000.0,0.0001737,2]
[347101461,1735498244711,-500.0,0.00017397,2]
[347101462,1735498244721,-500.0,0.00017397,2]
[347101463,1735498244731,-500.0,0.00017397,2]
[347101464,1735498244740,-1000.0,0.00017397,2]
[347101465,1735498244749,-500.0,0.00017397,2]
[347101466,1735498244759,-500.0,0.00017397,2]
[347101467,1735498244769,-500.0,0.00017397,2]
[347101468,1735498244783,-560.87,0.00017397,2]
[347101469,1735498244793,-356.940221,0.00017397,2]
[347101470,1735498244802,-290.995413,0.00017397,2]
[347101471,1735498244812,-500.0,0.00017397,2]